fUSD/lending_fUSD_20260625
["ID","MTS","AMOUNT","RATE_DAILY","PERIOD"]
[426379970,1782336702000,-500.0,0.00029,2]
[426379964,1782336702000,-500.0,0.00029,2]
[426379972,1782336702000,-500.0,0.00029,2]
[426379965,1782336702000,-500.0,0.00029,2]
[426379967,1782336702000,-500.0,0.00029,2]
[426379975,1782336702000,-500.0,0.00029,2]
[426379974,1782336702000,-500.0,0.00029,2]
[426379976,1782336702000,-500.0,0.00029,2]
[426379977,1782336702000,-603.77,0.00029,2]
[426379971,1782336702000,-500.0,0.00029,2]
[426379980,1782336702000,-1807.15179236,0.00029,2]
[426379992,1782336702000,-11449.9790671,0.00029,2]
[426379987,1782336702000,-200.0,0.00029,2]
[426379988,1782336702000,-331.24,0.00029,2]
[426379985,1782336702000,-200.0,0.00029,2]
[426379982,1782336702000,-200.0,0.00029,2]
[426379989,1782336702000,-5012.58,0.00029,2]
[426379983,1782336702000,-200.0,0.00029,2]
[426379979,1782336702000,-383.21244209,0.00029,2]
[426379981,1782336702000,-250.0,0.00029,7]
[426379978,1782336702000,-596.63264684,0.00029,2]
[426379984,1782336702000,-200.0,0.00029,2]
[426380063,1782336703000,-1897.69145061,0.00029402,2]
[426380061,1782336703000,-2494.61589144,0.00029402,2]
[426380060,1782336703000,-2505.9481123,0.00029402,2]
[426380058,1782336703000,-1385.777311,0.00029397,2]
[426380059,1782336703000,-1983.43,0.000294,7]
[426380056,1782336703000,-2371.94967958,0.00029397,2]
[426380057,1782336703000,-1273.17326987,0.00029397,2]
[426380051,1782336703000,-1156.00592961,0.00029397,2]
[426380050,1782336703000,-1826.83,0.00029394,7]
[426380053,1782336703000,-1127.67178688,0.00029397,2]
[426380062,1782336703000,-1516.65092448,0.00029402,2]
[426380055,1782336703000,-1218.90254162,0.00029397,2]
[426380065,1782336703000,-1314.23003396,0.00029402,2]
[426380068,1782336703000,-1368.48,0.00029424,7]
[426380066,1782336703000,-1103.83120195,0.00029402,2]
[426380070,1782336703000,-1843.03887734,0.00029452,2]
[426380071,1782336703000,-3120.1198912,0.00029453,7]
[426380074,1782336703000,-22449.02140482,0.00029487,2]
[426380077,1782336703000,-541.4,0.00029544,2]
[426380075,1782336703000,-800.0,0.000295,2]
[426380076,1782336703000,-3304.38,0.000295,7]
[426380072,1782336703000,-183.30132495,0.00029462,2]
[426380067,1782336703000,-541.4,0.00029417,7]
[426380073,1782336703000,-151.42675971,0.00029471,27]
[426380069,1782336703000,-464.09,0.00029429,2]
[426380079,1782336703000,-150.0,0.00029558,2]
[426380052,1782336703000,-2702.63592623,0.00029397,2]
[426380064,1782336703000,-1751.34475296,0.00029402,2]
[426380049,1782336703000,-200.0,0.00029388,2]
[426380021,1782336703000,-1843.03887734,0.0002911,2]
[426380054,1782336703000,-1202.65812805,0.00029397,2]
[426380020,1782336703000,-534.14,0.000291,2]
[426380023,1782336703000,-151.0,0.0002912,7]
[426380024,1782336703000,-547.483996,0.0002912,7]
[426380025,1782336703000,-151.0,0.0002912,7]
[426380022,1782336703000,-151.0,0.0002912,7]
[426380027,1782336703000,-547.483996,0.0002912,7]
[426380026,1782336703000,-547.483996,0.0002912,7]
[426380029,1782336703000,-151.0,0.0002912,7]
[426380028,1782336703000,-547.483996,0.0002912,7]
[426380031,1782336703000,-351.35,0.00029132,18]
[426380041,1782336703000,-1157.22783476,0.000293,2]
[426380042,1782336703000,-1163.44933688,0.000293,2]
[426380030,1782336703000,-420.27,0.00029132,18]
[426380033,1782336703000,-1252.19312256,0.00029156,2]
[426380032,1782336703000,-2901.0,0.00029134,10]
[426380035,1782336703000,-1311.34618103,0.00029172,2]
[426380037,1782336703000,-500.0,0.00029249,18]
[426380039,1782336703000,-1122.50862904,0.000293,2]
[426380036,1782336703000,-150.0,0.0002924,2]
[426380034,1782336703000,-2439.08,0.00029164,7]
[426380038,1782336703000,-1554.82,0.00029294,2]
[426380040,1782336703000,-1097.12494742,0.000293,2]
[426380043,1782336703000,-1231.1616808,0.000293,2]
[426380046,1782336703000,-541.4,0.00029354,2]
[426380045,1782336703000,-4000.0,0.00029348,10]
[426380048,1782336703000,-810.0,0.00029387,2]
[426380047,1782336703000,-2134.22,0.00029386,7]
[426380044,1782336703000,-1522.84,0.00029317,7]
[426380081,1782336703000,-194.406,0.00029558,2]
[426380085,1782336703000,-1500.0,0.000296,2]
[426380089,1782336703000,-1368.48,0.00029684,2]
[426380114,1782336703000,-195.534964,0.000299,7]
[426380118,1782336703000,-4200.0,0.000299,10]
[426380115,1782336703000,-195.534964,0.000299,7]
[426380123,1782336703000,-19175.30582026,0.000299,2]
[426380116,1782336703000,-195.534964,0.000299,7]
[426380120,1782336703000,-19175.30582027,0.000299,2]
[426380126,1782336703000,-19175.30582026,0.000299,2]
[426380117,1782336703000,-195.534964,0.000299,7]
[426380121,1782336703000,-19175.30582026,0.000299,2]
[426380119,1782336703000,-2850.0,0.000299,7]
[426380125,1782336703000,-19175.30582026,0.000299,2]
[426380124,1782336703000,-19175.30582026,0.000299,2]
[426380122,1782336703000,-190.0007273,0.000299,2]
[426380128,1782336703000,-19175.30582026,0.000299,2]
[426380139,1782336703000,-207.784733,0.0002993,7]
[426380127,1782336703000,-19175.30582026,0.000299,2]
[426380140,1782336703000,-151.0,0.0002993,7]
[426380138,1782336703000,-207.784733,0.0002993,7]
[426380130,1782336703000,-541.4,0.00029926,2]
[426380136,1782336703000,-207.784733,0.0002993,7]
[426380131,1782336703000,-274.483283,0.0002993,7]
[426380132,1782336703000,-1511.313423,0.0002993,7]
[426380133,1782336703000,-1511.313423,0.0002993,7]
[426380137,1782336703000,-207.784733,0.0002993,7]
[426380134,1782336703000,-1511.313423,0.0002993,7]
[426380129,1782336703000,-1611.22,0.00029926,2]
[426380078,1782336703000,-674.0,0.00029547,3]
[426380112,1782336703000,-80646.27937725,0.000299,2]
[426380110,1782336703000,-151.0,0.000298,7]
[426380135,1782336703000,-1511.313423,0.0002993,7]
[426380111,1782336703000,-1813.6317036,0.00029899,2]
[426380109,1782336703000,-547.483996,0.000298,7]
[426380084,1782336703000,-1522.84,0.00029591,2]
[426380082,1782336703000,-411.84051914,0.0002957,2]
[426380080,1782336703000,-150.0,0.00029558,2]
[426380087,1782336703000,-2134.22,0.00029651,2]
[426380086,1782336703000,-541.4,0.00029608,7]
[426380083,1782336703000,-700.0,0.0002957,2]
[426380090,1782336703000,-1554.82,0.00029715,2]
[426380094,1782336703000,-464.09,0.00029794,7]
[426380093,1782336703000,-152.0,0.00029791,7]
[426380100,1782336703000,-265.1308,0.000298,2]
[426380092,1782336703000,-541.4,0.00029735,2]
[426380091,1782336703000,-150.297301,0.0002973,28]
[426380088,1782336703000,-1826.83,0.00029658,2]
[426380101,1782336703000,-355.8843,0.000298,5]
[426380107,1782336703000,-547.483996,0.000298,7]
[426380108,1782336703000,-547.483996,0.000298,7]
[426380105,1782336703000,-547.483996,0.000298,7]
[426380106,1782336703000,-151.0,0.000298,7]
[426380099,1782336703000,-263.7608,0.000298,2]
[426380113,1782336703000,-265.5,0.000299,2]
[426380102,1782336703000,-183.92466735,0.000298,2]
[426380103,1782336703000,-151.0,0.000298,7]
[426380098,1782336703000,-263.7608,0.000298,3]
[426380097,1782336703000,-263.7608,0.000298,3]
[426380096,1782336703000,-1983.43,0.000298,7]
[426380095,1782336703000,-541.4,0.00029798,7]
[426380104,1782336703000,-275.934024,0.000298,7]
[426380180,1782336704000,-3999.300853,0.00029936,7]
[426380181,1782336704000,-3999.300853,0.00029936,7]
[426380177,1782336704000,-487.210801,0.00029936,7]
[426380188,1782336704000,-151.0,0.00029936,7]
[426380171,1782336704000,-1314.268822,0.00029936,7]
[426380167,1782336704000,-170.863335,0.00029936,7]
[426380176,1782336704000,-487.210801,0.00029936,7]
[426380174,1782336704000,-487.210801,0.00029936,7]
[426380175,1782336704000,-487.210801,0.00029936,7]
[426380172,1782336704000,-1314.268822,0.00029936,7]
[426380178,1782336704000,-3999.300853,0.00029936,7]
[426380179,1782336704000,-3999.300853,0.00029936,7]
[426380186,1782336704000,-153.757831,0.00029936,7]
[426380185,1782336704000,-153.757831,0.00029936,7]
[426380187,1782336704000,-151.0,0.00029936,7]
[426380182,1782336704000,-151.0,0.00029936,7]
[426380183,1782336704000,-153.757831,0.00029936,7]
[426380184,1782336704000,-153.757831,0.00029936,7]
[426380190,1782336704000,-3847.194923,0.00029936,7]
[426380191,1782336704000,-151.42675971,0.00029988,29]
[426380197,1782336704000,-50000.0,0.0003,2]
[426380192,1782336704000,-541.4,0.00029989,7]
[426380196,1782336704000,-868.15,0.00029999,3]
[426380193,1782336704000,-242.31898195,0.0002999,2]
[426380173,1782336704000,-1314.268822,0.00029936,7]
[426380195,1782336704000,-607.71,0.00029999,3]
[426380189,1782336704000,-3847.194923,0.00029936,7]
[426380170,1782336704000,-1314.268822,0.00029936,7]
[426380163,1782336704000,-306.557821,0.00029936,7]
[426380165,1782336704000,-151.0,0.00029936,7]
[426380198,1782336704000,-50000.0,0.0003,3]
[426380141,1782336704000,-151.0,0.0002993,7]
[426380144,1782336704000,-1755.289696,0.0002993,7]
[426380143,1782336704000,-1755.289696,0.0002993,7]
[426380151,1782336704000,-723.430219,0.0002993,7]
[426380147,1782336704000,-639.397884,0.0002993,7]
[426380145,1782336704000,-1755.289696,0.0002993,7]
[426380142,1782336704000,-153.464014,0.0002993,7]
[426380150,1782336704000,-639.397884,0.0002993,7]
[426380148,1782336704000,-639.397884,0.0002993,7]
[426380149,1782336704000,-639.397884,0.0002993,7]
[426380146,1782336704000,-1755.289696,0.0002993,7]
[426380169,1782336704000,-170.863335,0.00029936,7]
[426380152,1782336704000,-723.430219,0.0002993,7]
[426380162,1782336704000,-306.557821,0.00029936,7]
[426380153,1782336704000,-723.430219,0.0002993,7]
[426380164,1782336704000,-151.0,0.00029936,7]
[426380155,1782336704000,-2885167.02373553,0.00029936,7]
[426380157,1782336704000,-3218.726661,0.00029936,7]
[426380156,1782336704000,-3218.726661,0.00029936,7]
[426380159,1782336704000,-3218.726661,0.00029936,7]
[426380161,1782336704000,-306.557821,0.00029936,7]
[426380158,1782336704000,-3218.726661,0.00029936,7]
[426380160,1782336704000,-306.557821,0.00029936,7]
[426380168,1782336704000,-170.863335,0.00029936,7]
[426380166,1782336704000,-170.863335,0.00029936,7]
[426380154,1782336704000,-723.430219,0.0002993,7]
[426380194,1782336704000,-260.44,0.00029999,3]
[426380199,1782336704000,-50000.0,0.0003,4]
[426380242,1782336704000,-600.0,0.0003,5]
[426380231,1782336704000,-1000.0,0.0003,2]
[426380232,1782336704000,-3000.0,0.0003,20]
[426380233,1782336704000,-200.0,0.0003,11]
[426380234,1782336704000,-11467.46233166,0.0003,7]
[426380236,1782336704000,-207.11,0.0003,11]
[426380246,1782336704000,-283.67586473,0.0003,2]
[426380237,1782336704000,-4023.00131688,0.0003,14]
[426380238,1782336704000,-10378.89351001,0.0003,2]
[426380241,1782336704000,-1000.0,0.0003,5]
[426380240,1782336704000,-166.57,0.0003,7]
[426380244,1782336704000,-5200.0,0.0003,20]
[426380243,1782336704000,-184.68,0.0003,3]
[426380239,1782336704000,-200.0,0.0003,11]
[426380245,1782336704000,-5434.51241743,0.0003,15]
[426380248,1782336704000,-1000.0,0.0003,2]
[426380253,1782336704000,-28765.0,0.0003,10]
[426380252,1782336704000,-350.9640192,0.0003,2]
[426380251,1782336704000,-9235.43214397,0.0003,2]
[426380254,1782336704000,-1500.0,0.0003,2]
[426380249,1782336704000,-1000.0,0.0003,2]
[426380250,1782336704000,-5000.0,0.0003,5]
[426380257,1782336704000,-492.76463945,0.0003,7]
[426380256,1782336704000,-4354.20347943,0.0003,14]
[426380255,1782336704000,-1500.0,0.0003,2]
[426380259,1782336704000,-3304.38,0.0003,7]
[426380258,1782336704000,-800.0,0.0003,2]
[426380202,1782336704000,-1500.0,0.0003,2]
[426380228,1782336704000,-1116.45566223,0.0003,2]
[426380225,1782336704000,-254.05826759,0.0003,2]
[426380247,1782336704000,-1000.0,0.0003,2]
[426380226,1782336704000,-10215.85454996,0.0003,5]
[426380200,1782336704000,-1500.0,0.0003,2]
[426380206,1782336704000,-1500.0,0.0003,2]
[426380201,1782336704000,-1500.0,0.0003,2]
[426380203,1782336704000,-1500.0,0.0003,2]
[426380211,1782336704000,-800.0,0.0003,2]
[426380205,1782336704000,-1500.0,0.0003,2]
[426380208,1782336704000,-1500.0,0.0003,2]
[426380207,1782336704000,-52767.51626258,0.0003,5]
[426380229,1782336704000,-1128.62167397,0.0003,2]
[426380204,1782336704000,-1500.0,0.0003,2]
[426380209,1782336704000,-1500.0,0.0003,2]
[426380213,1782336704000,-800.0,0.0003,2]
[426380223,1782336704000,-200.0,0.0003,11]
[426380212,1782336704000,-800.0,0.0003,2]
[426380210,1782336704000,-424.322158,0.0003,10]
[426380219,1782336704000,-90937.87154783,0.0003,7]
[426380214,1782336704000,-800.0,0.0003,2]
[426380230,1782336704000,-1858.29470351,0.0003,2]
[426380227,1782336704000,-20319.86584959,0.0003,2]
[426380224,1782336704000,-63000.18462178,0.0003,2]
[426380220,1782336704000,-90937.87154783,0.0003,7]
[426380218,1782336704000,-800.0,0.0003,2]
[426380235,1782336704000,-11467.46233166,0.0003,7]
[426380217,1782336704000,-800.0,0.0003,2]
[426380216,1782336704000,-800.0,0.0003,2]
[426380222,1782336704000,-597.18791238,0.0003,7]
[426380215,1782336704000,-800.0,0.0003,2]
[426380221,1782336704000,-597.18791238,0.0003,7]
[426380308,1782336705000,-200.0,0.0003,2]
[426380301,1782336705000,-22497.01294109,0.0003,7]
[426380303,1782336705000,-195.534964,0.0003,7]
[426380302,1782336705000,-22497.01294109,0.0003,7]
[426380299,1782336705000,-100519.97666329,0.0003,7]
[426380298,1782336705000,-100519.97666329,0.0003,7]
[426380292,1782336705000,-12500.0,0.0003,2]
[426380290,1782336705000,-12500.0,0.0003,2]
[426380291,1782336705000,-22500.0,0.0003,2]
[426380293,1782336705000,-2500.0,0.0003,2]
[426380294,1782336705000,-25000.0,0.0003,2]
[426380304,1782336705000,-195.534964,0.0003,7]
[426380297,1782336705000,-22500.0,0.0003,2]
[426380307,1782336705000,-1426.45,0.0003,7]
[426380317,1782336705000,-749.0,0.00030001,2]
[426380305,1782336705000,-195.534964,0.0003,7]
[426380306,1782336705000,-195.534964,0.0003,7]
[426380310,1782336705000,-200.0,0.0003,2]
[426380312,1782336705000,-200.0,0.0003,2]
[426380311,1782336705000,-5000.0,0.0003,7]
[426380321,1782336705000,-5000.0,0.00030009,2]
[426380320,1782336705000,-5000.0,0.00030009,2]
[426380309,1782336705000,-200.0,0.0003,2]
[426380313,1782336705000,-200.0,0.0003,2]
[426380314,1782336705000,-1039.20153131,0.00030001,2]
[426380315,1782336705000,-749.0,0.00030001,2]
[426380318,1782336705000,-459.68028,0.00030005,2]
[426380287,1782336705000,-2500.0,0.0003,2]
[426380300,1782336705000,-650.0,0.0003,2]
[426380289,1782336705000,-10000.0,0.0003,2]
[426380260,1782336705000,-2000.0,0.0003,3]
[426380284,1782336705000,-10000.0,0.0003,2]
[426380262,1782336705000,-20000.0,0.0003,10]
[426380261,1782336705000,-590.54256873,0.0003,4]
[426380265,1782336705000,-150003.49414051,0.0003,2]
[426380267,1782336705000,-27175.02636257,0.0003,5]
[426380264,1782336705000,-63016.82324602,0.0003,7]
[426380263,1782336705000,-40242.44897196,0.0003,5]
[426380266,1782336705000,-3453.95225502,0.0003,2]
[426380270,1782336705000,-10068.32562787,0.0003,5]
[426380269,1782336705000,-38559.51642632,0.0003,10]
[426380268,1782336705000,-50000.0,0.0003,2]
[426380271,1782336705000,-275.7828349,0.0003,2]
[426380272,1782336705000,-10000.0,0.0003,2]
[426380275,1782336705000,-12499.99,0.0003,2]
[426380273,1782336705000,-12499.99,0.0003,2]
[426380280,1782336705000,-22500.0,0.0003,2]
[426380274,1782336705000,-22500.0,0.0003,2]
[426380283,1782336705000,-25000.0,0.0003,2]
[426380281,1782336705000,-12500.0,0.0003,2]
[426380276,1782336705000,-2500.0,0.0003,2]
[426380277,1782336705000,-8299.43,0.0003,2]
[426380279,1782336705000,-12500.0,0.0003,2]
[426380282,1782336705000,-2500.0,0.0003,2]
[426380278,1782336705000,-15000.0,0.0003,2]
[426380295,1782336705000,-15000.0,0.0003,2]
[426380285,1782336705000,-10000.0,0.0003,2]
[426380296,1782336705000,-10000.0,0.0003,2]
[426380286,1782336705000,-468.02,0.0003,2]
[426380288,1782336705000,-25000.0,0.0003,2]
[426380316,1782336705000,-749.0,0.00030001,2]
[426380382,1782336705000,-500.0,0.00030045,2]
[426380325,1782336705000,-1736.23,0.00030029,2]
[426380355,1782336705000,-200.0,0.00030045,2]
[426380356,1782336705000,-200.0,0.00030045,2]
[426380354,1782336705000,-200.0,0.00030045,2]
[426380357,1782336705000,-200.0,0.00030045,2]
[426380358,1782336705000,-200.0,0.00030045,2]
[426380361,1782336705000,-200.0,0.00030045,2]
[426380371,1782336705000,-200.0,0.00030045,2]
[426380372,1782336705000,-200.0,0.00030045,2]
[426380362,1782336705000,-200.0,0.00030045,2]
[426380365,1782336705000,-200.0,0.00030045,2]
[426380363,1782336705000,-200.0,0.00030045,2]
[426380366,1782336705000,-200.0,0.00030045,2]
[426380360,1782336705000,-200.0,0.00030045,2]
[426380364,1782336705000,-200.0,0.00030045,2]
[426380368,1782336705000,-200.0,0.00030045,2]
[426380370,1782336705000,-200.0,0.00030045,2]
[426380369,1782336705000,-200.0,0.00030045,2]
[426380367,1782336705000,-200.0,0.00030045,2]
[426380373,1782336705000,-200.0,0.00030045,2]
[426380375,1782336705000,-200.0,0.00030045,2]
[426380374,1782336705000,-200.0,0.00030045,2]
[426380380,1782336705000,-500.0,0.00030045,2]
[426380381,1782336705000,-500.0,0.00030045,2]
[426380376,1782336705000,-186.0,0.00030045,2]
[426380379,1782336705000,-500.0,0.00030045,2]
[426380377,1782336705000,-500.0,0.00030045,2]
[426380319,1782336705000,-5000.0,0.00030009,2]
[426380359,1782336705000,-200.0,0.00030045,2]
[426380348,1782336705000,-200.0,0.00030045,2]
[426380378,1782336705000,-500.0,0.00030045,2]
[426380351,1782336705000,-200.0,0.00030045,2]
[426380353,1782336705000,-200.0,0.00030045,2]
[426380322,1782336705000,-5000.0,0.00030009,2]
[426380328,1782336705000,-169.3,0.00030045,14]
[426380323,1782336705000,-5000.0,0.00030009,2]
[426380326,1782336705000,-168.4125,0.00030045,14]
[426380331,1782336705000,-500.0,0.00030045,2]
[426380329,1782336705000,-169.31,0.00030045,14]
[426380327,1782336705000,-169.3,0.00030045,14]
[426380332,1782336705000,-500.0,0.00030045,2]
[426380330,1782336705000,-500.0,0.00030045,2]
[426380333,1782336705000,-500.0,0.00030045,2]
[426380335,1782336705000,-500.0,0.00030045,2]
[426380341,1782336705000,-200.0,0.00030045,2]
[426380334,1782336705000,-500.0,0.00030045,2]
[426380324,1782336705000,-496.9438256,0.0003002,2]
[426380343,1782336705000,-200.0,0.00030045,2]
[426380340,1782336705000,-200.0,0.00030045,2]
[426380350,1782336705000,-200.0,0.00030045,2]
[426380352,1782336705000,-200.0,0.00030045,2]
[426380349,1782336705000,-200.0,0.00030045,2]
[426380339,1782336705000,-200.0,0.00030045,2]
[426380342,1782336705000,-200.0,0.00030045,2]
[426380347,1782336705000,-200.0,0.00030045,2]
[426380336,1782336705000,-500.0,0.00030045,2]
[426380345,1782336705000,-200.0,0.00030045,2]
[426380338,1782336705000,-500.0,0.00030045,2]
[426380337,1782336705000,-500.0,0.00030045,2]
[426380346,1782336705000,-200.0,0.00030045,2]
[426380344,1782336705000,-200.0,0.00030045,2]
[426380418,1782336706000,-1924.2587308,0.0003013,2]
[426380433,1782336706000,-1041.87,0.00030136,2]
[426380423,1782336706000,-151.0,0.0003013,7]
[426380424,1782336706000,-163.12328499,0.00030136,3]
[426380415,1782336706000,-303.47812588,0.0003013,2]
[426380421,1782336706000,-364.57,0.0003013,15]
[426380416,1782336706000,-31054.13241909,0.0003013,2]
[426380414,1782336706000,-481.80685495,0.0003013,2]
[426380417,1782336706000,-5045.18871527,0.0003013,2]
[426380412,1782336706000,-648.44404383,0.0003013,2]
[426380411,1782336706000,-14171.45926867,0.0003013,2]
[426380419,1782336706000,-30125.12191952,0.0003013,2]
[426380426,1782336706000,-200.00131036,0.00030136,2]
[426380429,1782336706000,-1041.87,0.00030136,2]
[426380430,1782336706000,-1041.87,0.00030136,2]
[426380425,1782336706000,-320.21573895,0.00030136,14]
[426380427,1782336706000,-1041.87,0.00030136,2]
[426380432,1782336706000,-1041.87,0.00030136,2]
[426380431,1782336706000,-1041.87,0.00030136,2]
[426380434,1782336706000,-1041.87,0.00030136,2]
[426380443,1782336706000,-1041.87,0.00030136,2]
[426380436,1782336706000,-1041.87,0.00030136,2]
[426380435,1782336706000,-1041.87,0.00030136,2]
[426380445,1782336706000,-1041.87,0.00030136,2]
[426380444,1782336706000,-1041.87,0.00030136,2]
[426380410,1782336706000,-1098.04347313,0.0003013,2]
[426380437,1782336706000,-1041.87,0.00030136,2]
[426380428,1782336706000,-1041.87,0.00030136,2]
[426380413,1782336706000,-206.20988771,0.0003013,2]
[426380398,1782336706000,-2540.3062252,0.000301,2]
[426380422,1782336706000,-12817.0826963,0.0003013,2]
[426380438,1782336706000,-1041.87,0.00030136,2]
[426380383,1782336706000,-500.0,0.00030045,2]
[426380384,1782336706000,-593.0,0.00030045,2]
[426380386,1782336706000,-674.0,0.00030067,3]
[426380396,1782336706000,-250.0,0.00030081,7]
[426380385,1782336706000,-1286.72,0.00030053,7]
[426380387,1782336706000,-1397.45110063,0.00030075,2]
[426380390,1782336706000,-547.483996,0.0003008,7]
[426380388,1782336706000,-547.483996,0.0003008,7]
[426380389,1782336706000,-151.0,0.0003008,7]
[426380394,1782336706000,-250.0,0.00030081,7]
[426380392,1782336706000,-547.483996,0.0003008,7]
[426380395,1782336706000,-250.0,0.00030081,7]
[426380393,1782336706000,-151.0,0.0003008,7]
[426380391,1782336706000,-547.483996,0.0003008,7]
[426380408,1782336706000,-22500.0,0.00030125,2]
[426380399,1782336706000,-42602.28137347,0.000301,7]
[426380397,1782336706000,-1500.0,0.00030099,2]
[426380400,1782336706000,-15000.0,0.000301,2]
[426380406,1782336706000,-12500.0,0.00030125,2]
[426380403,1782336706000,-22500.0,0.00030125,2]
[426380407,1782336706000,-22500.0,0.00030125,2]
[426380401,1782336706000,-15000.0,0.000301,2]
[426380402,1782336706000,-541.4,0.00030116,2]
[426380404,1782336706000,-12499.98,0.00030125,2]
[426380405,1782336706000,-22500.0,0.00030125,2]
[426380420,1782336706000,-99070.06631092,0.0003013,2]
[426380409,1782336706000,-500.0,0.00030126,19]
[426380439,1782336706000,-1041.87,0.00030136,2]
[426380502,1782336706000,-2000.0,0.00030136,2]
[426380440,1782336706000,-1041.87,0.00030136,2]
[426380473,1782336706000,-2453.94,0.00030136,2]
[426380474,1782336706000,-2453.96511725,0.00030136,2]
[426380475,1782336706000,-163.97120658,0.00030136,2]
[426380480,1782336706000,-300.0,0.00030136,2]
[426380479,1782336706000,-300.0,0.00030136,2]
[426380478,1782336706000,-300.0,0.00030136,2]
[426380491,1782336706000,-181.57871661,0.00030136,2]
[426380483,1782336706000,-300.0,0.00030136,2]
[426380492,1782336706000,-2000.0,0.00030136,2]
[426380493,1782336706000,-2000.0,0.00030136,2]
[426380494,1782336706000,-2000.0,0.00030136,2]
[426380482,1782336706000,-300.0,0.00030136,2]
[426380485,1782336706000,-300.0,0.00030136,2]
[426380490,1782336706000,-300.0,0.00030136,2]
[426380489,1782336706000,-300.0,0.00030136,2]
[426380486,1782336706000,-300.0,0.00030136,2]
[426380488,1782336706000,-300.0,0.00030136,2]
[426380487,1782336706000,-300.0,0.00030136,2]
[426380495,1782336706000,-2000.0,0.00030136,2]
[426380497,1782336706000,-2000.0,0.00030136,2]
[426380500,1782336706000,-2000.0,0.00030136,2]
[426380498,1782336706000,-2000.0,0.00030136,2]
[426380501,1782336706000,-2000.0,0.00030136,2]
[426380503,1782336706000,-2000.0,0.00030136,2]
[426380496,1782336706000,-2000.0,0.00030136,2]
[426380499,1782336706000,-2000.0,0.00030136,2]
[426380441,1782336706000,-1041.87,0.00030136,2]
[426380472,1782336706000,-2453.94,0.00030136,2]
[426380481,1782336706000,-300.0,0.00030136,2]
[426380484,1782336706000,-300.0,0.00030136,2]
[426380476,1782336706000,-402.61308362,0.00030136,2]
[426380477,1782336706000,-300.0,0.00030136,2]
[426380448,1782336706000,-1041.87,0.00030136,2]
[426380446,1782336706000,-1041.87,0.00030136,2]
[426380447,1782336706000,-1041.87,0.00030136,2]
[426380455,1782336706000,-2453.94,0.00030136,2]
[426380451,1782336706000,-2453.94,0.00030136,2]
[426380456,1782336706000,-2453.94,0.00030136,2]
[426380449,1782336706000,-1041.87,0.00030136,2]
[426380454,1782336706000,-2453.94,0.00030136,2]
[426380453,1782336706000,-2453.94,0.00030136,2]
[426380452,1782336706000,-2453.94,0.00030136,2]
[426380450,1782336706000,-1041.88998,0.00030136,2]
[426380457,1782336706000,-2453.94,0.00030136,2]
[426380460,1782336706000,-2453.94,0.00030136,2]
[426380442,1782336706000,-1041.87,0.00030136,2]
[426380470,1782336706000,-2453.94,0.00030136,2]
[426380458,1782336706000,-2453.94,0.00030136,2]
[426380471,1782336706000,-2453.94,0.00030136,2]
[426380467,1782336706000,-2453.94,0.00030136,2]
[426380463,1782336706000,-2453.94,0.00030136,2]
[426380464,1782336706000,-2453.94,0.00030136,2]
[426380466,1782336706000,-2453.94,0.00030136,2]